Cogmind - Beta 16.1 @@@ ROGUE MODE // 2026.02.17 @ 00:10:38 Player: Megaknight51 Result: Destroyed by P-60 Hacker with Shock Rifle Performance ------------- Evolutions (2) 1000 Regions Visited (8) 1600 Robots Destroyed (125) 625 Value Destroyed (3969) 3969 Prototype IDs (5) 100 Alien Tech Used (0) 0 Bonus (1366) 1366 TOTAL SCORE: 8660 Bonus ------- High Alert Combat Kills 906 Follower Combat Kills 60 Entered Garrisons 400 Cogmind --------- Core Integrity 0/550 Matter 58/300 Energy 289/325 System Corruption 23% Temperature Hot (248) Movement Rolling (130) Ox2 Location -8/Garrison Parts ------- > --- POWER (2) -------- Reinforced Ion Engine Light Nuclear Core > --- PROPULSION (2) --- Armored Huge Wheel > --- UTILITY (3) ------ Advanced Heat Sink High-capacity Storage Unit Light Armor Plating > --- WEAPON (4) ------- Improved EM Pulse Cannon Improved Grenade Launcher Improved Grenade Launcher > --- INVENTORY (20) --- Wheel Armored Huge Wheel Improved Heat Sink Improved Heat Sink Advanced Heat Sink Machine Analyzer Experimental Sensor Array Improved Signal Interpreter Improved Terrain Scanner Target Analyzer Heavy Armor Plating Improved Shield Generator Enhanced Autogun Enhanced Autogun Datajack Plasma Cutter Axe Peak State ------------ > --- POWER ------------ Light Nuclear Core Light Nuclear Core > --- PROPULSION ------- Armored Huge Wheel > --- UTILITY ---------- Advanced Heat Sink High-capacity Storage Unit Improved Medium Armor Plating > --- WEAPON ----------- Gatling Laser Gatling Laser Gauss Rifle Gauss Rifle > --- INVENTORY -------- Light Nuclear Core Wheel Armored Huge Wheel Improved Heat Sink Improved Heat Sink Structural Scanner Machine Analyzer Experimental Sensor Array Improved Signal Interpreter Improved Signal Interpreter Improved Terrain Scanner Target Analyzer Light Armor Plating Heavy Armor Plating Hardened Medium Armor Plating Improved Shield Generator Datajack Axe [Rating: 46] Favorites ----------- Power Light Nuclear Core Engine Ion Engine Power Core Light Nuclear Core Propulsion Wheel Wheel Wheel Utility High-capacity Storage Unit Device Advanced Heat Sink Storage High-capacity Storage Unit Protection Hardened Medium Armor Plating Weapon Particle Gun Energy Gun Particle Gun Energy Cannon Improved EM Pulse Cannon Ballistic Gun Enhanced Autogun Launcher Mini Grenade Launcher Special Weapon Mining Laser Impact Weapon Heavy Hammer Slashing Weapon Axe Special Melee Weapon Datajack Build | -11 -10 -10 -10 -9 -8 -8 -8 -8 ------- Run | Yrd Mat Min Exi Min Mat Gar Mat Gar Slots Evolved 4 | . . . . . 4 . . . Power 1 | . . . . . 1 . . . Propulsion . | . . . . . . . . . Utility 1 | . . . . . 1 . . . Weapon 2 | . . . . . 2 . . . Parts Attached 86 | 7 9 1 2 1 22 29 13 2 Power 17 | 1 1 . . . 5 5 4 1 Engine 9 | 1 1 . . . 3 2 2 . Core 8 | . . . . . 2 3 2 1 Reactor . | . . . . . . . . . Propulsion 10 | 2 3 . . . 2 3 . . Treads . | . . . . . . . . . Leg . | . . . . . . . . . Wheel 10 | 2 3 . . . 2 3 . . Hover . | . . . . . . . . . Flight . | . . . . . . . . . Utility 17 | 2 2 1 1 1 4 5 1 . Device 9 | 1 . 1 . 1 4 2 . . Storage 3 | 1 1 . 1 . . . . . Processor . | . . . . . . . . . Hackware . | . . . . . . . . . Protection 5 | . 1 . . . . 3 1 . Artifact . | . . . . . . . . . Weapon 42 | 2 3 . 1 . 11 16 8 1 Energy Gun 17 | 2 2 . 1 . 5 7 . . Energy Cannon 5 | . . . . . 1 2 2 . Ballistic Gun 9 | . . . . . 1 5 3 . Ballistic Cannon . | . . . . . . . . . Launcher 7 | . . . . . 2 2 2 1 Special Weapon 1 | . 1 . . . . . . . Impact Weapon 1 | . . . . . 1 . . . Slashing Weapon 1 | . . . . . 1 . . . Piercing Weapon . | . . . . . . . . . Special Melee Weapon 1 | . . . . . . . 1 . Unidentified Prototypes 3 | . . 1 . . 1 . 1 . Corrupted Parts 3 | . . . . . . . 3 . System Corruption 17 | . . . . . . . 17 . Parts Lost 34 | . 6 . 2 . 1 15 9 1 Power 10 | . 1 . 1 . . 3 5 . Propulsion 5 | . 2 . . . 1 2 . . Utility 5 | . 1 . 1 . . 2 1 . Weapon 14 | . 2 . . . . 8 3 1 Highest Loss Streak 6 | . 5 . 2 . 1 6 4 1 To Critical Strikes . | . . . . . . . . . Average Backups 16 | 4 11 20 20 19 19 17 17 17 Power . | . . . . . . . . . Propulsion 2 | 2 2 2 2 2 2 3 2 2 Utility 8 | . 4 8 8 8 10 11 10 10 Weapon 4 | . 4 9 8 8 5 1 2 3 Tool/Special . | . . . . . . . . . Unused Backups 29 | . 3 . . . 7 9 . 10 Power . | . . . . . . . . . Propulsion 4 | . . . . . 1 2 . 1 Utility 18 | . . . . . 4 6 . 8 Weapon 6 | . 3 . . . 2 1 . . Tool/Special 1 | . . . . . . . . 1 Average Slot Usage (%) 89 | . 93 100 81 74 93 87 87 88 Engine 9 | . 13 14 5 . 10 6 8 9 Core 4 | . . . . . 2 10 8 7 Wheel 17 | . 21 28 28 28 17 10 8 9 Device 8 | . 5 . . 3 17 10 8 9 Storage 10 | . 14 14 14 14 9 9 9 9 Protection 6 | . 8 13 5 . . 7 9 9 Energy Gun 18 | . 26 28 18 28 26 12 . . Energy Cannon 4 | . . . . . 1 4 17 9 Ballistic Gun 6 | . . . . . 4 10 17 5 Special Weapon 1 | . 1 . 8 . . . . . Slashing Weapon 1 | . . . . . . 5 . . Peak Build Rating 46 | 7 10 18 12 12 31 46 46 40 Average Rating 24 | 6 8 11 10 10 25 36 44 39 On Entrance 18 | . 7 10 12 10 12 30 45 37 Avg Prop Armor Cover (%) . | . . . . . . . . . Naked Turns . | . . . . . . . . . Heaviest Build 92 | 12 92 92 92 46 73 80 88 84 Greatest Support 28 | 26 26 26 26 26 26 28 28 28 Greatest Overweight (x) 9 | . 9 3 3 1 4 7 3 2 Average Overweight (x) 2 | . 4 3 2 1 1 2 2 2 Largest Inventory Capacity 25 | 8 25 25 25 20 20 20 20 20 Average Capacity 21 | 7 23 25 24 20 20 20 20 20 Most Carried 21 | 7 18 21 21 20 20 20 20 20 Average Carried 17 | 4 11 20 20 19 19 19 19 19 Final Capacity 25 | 8 25 25 20 20 20 20 20 20 Final Carried 21 | 7 18 21 20 19 20 20 20 19 Class Distribution -------------------- 34% | Scavenger-Tank 28% | Scavenger-Mutant 19% | Tank 18% | Mutant Dominant Class ---------------- Mutant | -10/Materials Scavenger-Mutant | -10/Mines Scavenger-Mutant | -10/Exiles Scavenger-Mutant | -9/Mines Tank | -8/Materials Scavenger-Tank | -8/Garrison Scavenger-Tank | -8/Materials Scavenger-Tank | -8/Garrison Resources | -11 -10 -10 -10 -9 -8 -8 -8 -8 ----------- Run | Yrd Mat Min Exi Min Mat Gar Mat Gar Matter Collected 2190 | 270 100 20 . 69 360 776 595 . Remotely . | . . . . . . . . . Salvage Created 4698 | 214 660 . . 41 722 1642 1399 20 Parts 240 | 22 41 . . . 40 64 72 1 Haulers Intercepted 4 | . 1 . . . 2 . 1 . Recyclers Shooed 2 | . 1 . . . 1 . . . Parts Field Recycled . | . . . . . . . . . Retrieved Matter . | . . . . . . . . . Parts Self-Destructed . | . . . . . . . . . Prevented . | . . . . . . . . . Parts Restored . | . . . . . . . . . Kills | -11 -10 -10 -10 -9 -8 -8 -8 -8 ------- Run | Yrd Mat Min Exi Min Mat Gar Mat Gar Combat Hostiles Destroyed 98 | . 19 . . 1 15 36 26 1 Melee 1 | . . . . . . 1 . . Guns 58 | . 18 . . 1 8 21 10 . Cannons 16 | . . . . . 2 4 10 . AOE 20 | . . . . . 4 10 5 1 Classes Destroyed 12 | 3 4 . . . 2 1 2 . Worker 8 | 2 1 . . . 2 . 3 . Builder 3 | . . . . . 1 . 2 . Tunneler 8 | 7 . . . . 1 . . . Hauler 4 | . 1 . . . 2 . 1 . Recycler 2 | 1 . . . . 1 . . . Operator 2 | . 1 . . . . . 1 . Swarmer 20 | . 6 . . . 5 7 2 . Grunt 54 | . 13 . . 1 6 18 16 . Brawler 1 | . . . . . . . 1 . Sentry 20 | . . . . . 4 10 6 . Hunter 1 | . . . . . . . 1 . Programmer 2 | . . . . . . 1 . 1 Best Kill Streak 10 | 4 4 . . 1 5 10 9 1 Combat Bots Only 10 | . 4 . . 1 5 10 6 1 Max Kills in Single Turn 3 | 1 1 . . 1 2 2 3 1 Gunslinging . | . . . . . . . . . Exploded 2 | . . . . . 1 2 1 1 Melee 1 | . . . . . . 1 . . Uniques/NPCs Destroyed . | . . . . . . . . . Combat | -11 -10 -10 -10 -9 -8 -8 -8 -8 -------- Run | Yrd Mat Min Exi Min Mat Gar Mat Gar Hostile Shots Fired 471 | . 76 . . 4 56 201 123 11 Missed 116 | . 19 . . . 15 47 33 2 Hits 355 | . 57 . . 4 41 154 90 9 Melee 1 | . . . . . . . 1 . Projectile 354 | . 57 . . 4 41 154 89 9 Critical Strikes 10 | . 1 . . . . 5 4 . Damage Taken 5354 | . 646 . 251 42 449 2296 1525 145 Core 797 | . 162 . 74 9 61 317 112 62 Absorbed by Shields 358 | . . . . 17 174 167 . . Regen/Repaired (Parts) 455 | . . . . . . . 455 . Core Remaining (%) 51 | 100 . . . 2 . . . . Volleys Fired 283 | 22 67 . 11 4 43 74 60 2 Largest 4 | 2 2 . 1 2 4 4 4 4 Hottest 264 | 90 105 . 100 105 264 224 188 177 Shots Fired 741 | 44 124 . 11 9 156 208 183 6 Gun 575 | 44 115 . . 9 134 168 105 . Cannon 118 | . . . . . 14 33 69 2 Launcher 28 | . . . . . 8 7 9 4 Special 20 | . 9 . 11 . . . . . Kinetic 195 | . . . . . 14 76 105 . Thermal 447 | 44 124 . 11 9 134 125 . . Explosive 28 | . . . . . 8 7 9 4 Electromagnetic 71 | . . . . . . . 69 2 Robot Hit Streak 19 | 4 15 . . 4 9 19 13 3 Robot Miss Streak 6 | 6 2 . . 1 6 4 4 1 Penetration Max 1 | . . . . . . 1 . . Secondary Targets 3 | . . . . . . 2 1 . Max Gunslinging Chain 1 | . . . . . . 1 1 . Shots Hit Robots 466 | 20 77 . . 6 92 161 105 5 Core Hits 220 | 11 32 . . 3 40 70 60 4 Critical Kills . | . . . . . . . . . Critical Parts Destroyed 2 | . . . . . . 1 1 . Critical Strikes 15 | 2 2 . . . 6 3 2 . Burn 12 | 2 2 . . . 6 2 . . Destroy 2 | . . . . . . 1 1 . Corrupt 1 | . . . . . . . 1 . Melee Attacks 30 | . . . . . 5 24 1 . Impact 2 | . . . . . 2 . . . Slashing 27 | . . . . . 3 24 . . Piercing . | . . . . . . . . . Sneak Attacks 3 | . . . . . 1 1 1 . Combat Hostiles . | . . . . . . . . . Follow-up Attacks . | . . . . . . . . . Damage Inflicted 11315 | 259 1002 . . 79 2536 4171 3002 266 Guns 5702 | 259 1002 . . 79 1248 2029 1085 . Cannons 2209 | . . . . . 225 718 1254 12 Explosions 2698 | . . . . . 951 839 654 254 Melee 670 | . . . . . 85 585 . . Ramming 36 | . . . . . 27 . 9 . Kinetic 2127 | . . . . . 139 903 1085 . Thermal 5019 | 259 1002 . . 79 1835 1844 . . Explosive 2007 | . . . . . 450 839 464 254 Electromagnetic 1456 | . . . . . . . 1444 12 Impact . | . . . . . . . . . Slashing 670 | . . . . . 85 585 . . Piercing . | . . . . . . . . . Highest Corruption 23 | . . . 9 9 5 6 23 23 Average Corruption 7 | . . . 9 9 3 5 13 23 Corruption Purged . | . . . . . . . . . Corruption Blocked . | . . . . . . . . . Effects 144 | . . . 11 6 25 50 48 4 Message Errors 41 | . . . 3 2 8 15 11 2 Matter Fused 27 | . . . 3 1 2 9 12 . Heat Flow Errors 14 | . . . 1 . 3 6 3 1 Energy Discharges 21 | . . . 2 2 7 5 5 . Parts Rejected 1 | . . . . . . 1 . . Parts Fused 1 | . . . . . 1 . . . Data Loss (minor) 12 | . . . 1 . 1 5 5 . Data Loss (major) 9 | . . . 1 . . 4 4 . Misfires 5 | . . . . 1 2 2 . . Alerts 3 | . . . . . . 2 1 . Misdirections 2 | . . . . . . . 2 . Weapon Failures 8 | . . . . . 1 1 5 1 Overload Shots . | . . . . . . . . . Overflow Damage 364 | . . . . . 205 102 43 14 Projectiles 58 | . . . . . . 19 39 . Explosions 218 | . . . . . 160 40 4 14 Melee 88 | . . . . . 45 43 . . Knockbacks . | . . . . . . . . . Impact . | . . . . . . . . . Kinetic . | . . . . . . . . . Secondary . | . . . . . . . . . Self-Inflicted Damage 263 | . . . . . 40 89 123 11 Shots 11 | . . . . . 1 3 4 3 Rammed 3 | . . . . . 2 . 1 . Targets Rammed 3 | . . . . . 2 . 1 . Kicked . | . . . . . . . . . Crushed . | . . . . . . . . . Highest Temperature 473 | 120 366 . 188 89 418 403 473 275 Average Temperature 126 | 45 115 . 100 39 142 122 169 246 Received Heat Transfer 2283 | . 306 . . 24 174 1077 702 . Effects 20 | . 7 . . . 3 5 5 . Shutdowns 2 | . . . . . . 1 1 . Energy Bleed 4 | . 1 . . . 1 1 1 . Interference 12 | . 5 . . . 2 3 2 . Short Circuit 1 | . 1 . . . . . . . Damage (major) 1 | . . . . . . . 1 . Siege Activations . | . . . . . . . . . Martial Activations . | . . . . . . . . . Shielding Activations . | . . . . . . . . . Robots Disrupted 1 | . . . . . . . 1 . Combat Hostiles 1 | . . . . . . . 1 . Robots Corrupted 1 | . . . . . . . 1 . Combat Hostiles 1 | . . . . . . . 1 . Parts Fried 6 | . . . . . . . 6 . Impact Corruptions . | . . . . . . . . . Robots Melted 2 | . 1 . . . 1 . . . Combat Hostiles 2 | . 1 . . . 1 . . . Parts Melted 25 | 1 9 . . . 7 8 . . Heat Transferred 10831 | 866 2541 . . 186 3719 3519 . . Parts Sabotaged . | . . . . . . . . . Parts Stolen . | . . . . . . . . . Parts Stripped . | . . . . . . . . . Power Chain Reactions 1 | . . . . . . . 1 . Alert | -11 -10 -10 -10 -9 -8 -8 -8 -8 ------- Run | Yrd Mat Min Exi Min Mat Gar Mat Gar Maximum Alert Level 4 | . . . . . 1 4 3 2 Low Security (%) 37 | 100 100 100 . 100 12 . . . Level 1 19 | . . . . . 87 8 . . Level 2 24 | . . . . . . 48 60 100 Level 3 15 | . . . . . . 32 39 . Level 4 3 | . . . . . . 10 . . Level 5 . | . . . . . . . . . High Security . | . . . . . . . . . Max Security . | . . . . . . . . . Peak Influence 1192 | 10 134 82 . 45 388 1192 961 658 Initial 620 | . 3 44 . . 13 249 581 620 Average 379 | 1 45 12 . 4 260 742 635 624 Influence Increases 3681 | 50 602 68 . 45 840 1113 922 41 Destroy 0b10 Robot/C 2000 | . 380 40 . 20 300 720 520 20 Destroy 0b10 Robot/NC 145 | 50 15 . . . 35 10 35 . Destroy Leader 348 | . 92 10 . 10 84 20 132 . Allied During Kill 4 | . . 3 . . . 1 . . Successful Hack 65 | . 18 . . . 15 16 16 . Select Force Hacks 150 | . 60 . . . 60 . 30 . Disable Machine 195 | . . . . . 120 15 60 . Anti-Garrison Action 200 | . . . . . . 200 . . Destroy Structure 289 | . 7 . . . 91 131 39 21 Lose Combat Pursuer 285 | . 30 15 . 15 135 . 90 . Influence Decreases 3030 | 45 493 182 . 10 491 305 1159 345 Entered New Map 1175 | . 2 70 . . 22 135 611 335 Time Decay 1515 | 45 431 112 . 10 459 . 458 . Lost Part 320 | . 60 . . . 10 150 90 10 Lost Ally 20 | . . . . . . 20 . . Squads Dispatched 16 | . 6 1 . . 2 . 7 . Investigation 8 | . 4 . . . 2 . 2 . Extermination . | . . . . . . . . . Reinforcement 4 | . 2 . . . . . 2 . Assault 2 | . . 1 . . . . 1 . Garrison 2 | . . . . . . . 2 . Intercept . | . . . . . . . . . Searches Triggered . | . . . . . . . . . Construction Impeded . | . . . . . . . . . Haulers Reinforced . | . . . . . . . . . Active Scanning Responses . | . . . . . . . . . Cargo Convoy Interrupts . | . . . . . . . . . Stealth | -11 -10 -10 -10 -9 -8 -8 -8 -8 --------- Run | Yrd Mat Min Exi Min Mat Gar Mat Gar Distress Signals 6 | . 1 . . . 2 . 3 . Communications Jammed . | . . . . . . . . . Distress Signals . | . . . . . . . . . Times Spotted 140 | . 27 1 . 2 25 36 46 3 Peak Tracking Total 10 | . 4 2 . 2 6 10 7 3 Tactical Retreats 14 | . 2 1 . 1 5 . 5 . Traps | -11 -10 -10 -10 -9 -8 -8 -8 -8 ------- Run | Yrd Mat Min Exi Min Mat Gar Mat Gar Traps Triggered 12 | . 2 . . . 3 7 . . Indirectly . | . . . . . . . . . Trap Hack Attempts . | . . . . . . . . . Triggered . | . . . . . . . . . Disarmed . | . . . . . . . . . Reprogrammed . | . . . . . . . . . Reused . | . . . . . . . . . Traps Extracted . | . . . . . . . . . Installed . | . . . . . . . . . Triggered . | . . . . . . . . . Machines | -11 -10 -10 -10 -9 -8 -8 -8 -8 ---------- Run | Yrd Mat Min Exi Min Mat Gar Mat Gar Machines Disabled 14 | . . . . . 8 2 4 . Max in Single Turn 4 | . . . . . 4 1 2 . Machines Repaired . | . . . . . . . . . Machines Dismantled . | . . . . . . . . . Machines Sabotaged . | . . . . . . . . . Overloaded Fab Kills . | . . . . . . . . . Hacking | -11 -10 -10 -10 -9 -8 -8 -8 -8 --------- Run | Yrd Mat Min Exi Min Mat Gar Mat Gar Machines Accessed 27 | . 5 1 1 . 9 2 9 . Terminals 15 | . 3 . . . 4 2 6 . Fabricators . | . . . . . . . . . Repair Stations 1 | . . . . . . . 1 . Recycling Units 5 | . 2 . . . 2 . 1 . Scanalyzers 2 | . . . . . 2 . . . Garrison Access 2 | . . . . . 1 . 1 . Total Hacks 60 | . 13 1 1 . 21 3 21 . Successful 33 | . 8 1 1 . 9 1 13 . Failed 26 | . 5 . . . 11 2 8 . Catastrophic 7 | . 3 . . . 1 1 2 . Database Lockouts 1 | . . . . . 1 . . . Manual 38 | . 11 . . . 14 . 13 . Terminals 36 | . 11 . . . 11 3 11 . Fabricators . | . . . . . . . . . Repair Stations 7 | . . . . . . . 7 . Recycling Units 6 | . 2 . . . 3 . 1 . Scanalyzers 5 | . . . . . 5 . . . Garrison Access 4 | . . . . . 2 . 2 . Terminal Hacks 9 | . 4 1 1 . 2 1 . . Record 1 | . . . 1 . . . . . Robot Analysis 3 | . 2 . . . 1 . . . Prototype ID Bank 1 | . 1 . . . . . . . Open Door 1 | . . 1 . . . . . . Terminal Index 1 | . . . . . 1 . . . Hauler Manifests 1 | . 1 . . . . . . . Security Stations 1 | . . . . . . 1 . . Fabricator Hacks . | . . . . . . . . . Repair Station Hacks 6 | . . . . . . . 6 . Scan Component 3 | . . . . . . . 3 . Repair 3 | . . . . . . . 3 . Recycling Unit Hacks . | . . . . . . . . . Scanalyzer 1 | . . . . . 1 . . . Retrieve Study 1 | . . . . . 1 . . . Garrison Access Hacks 2 | . . . . . 1 . 1 . Unlock Access 2 | . . . . . 1 . 1 . Unauthorized Hacks 15 | . 4 . . . 5 . 6 . Terminals 10 | . 2 . . . 3 . 5 . Botnet 10 | . 2 . . . 3 . 5 . Fabricators . | . . . . . . . . . Repair Stations . | . . . . . . . . . Recycling Units 5 | . 2 . . . 2 . 1 . Tunnel 5 | . 2 . . . 2 . 1 . Scanalyzers . | . . . . . . . . . Garrison Access . | . . . . . . . . . Data Cores Recovered . | . . . . . . . . . Used . | . . . . . . . . . Hacking Detections 16 | . 2 . . . 5 2 7 . Full Trace Events 3 | . 1 . . . . . 2 . Feedback Events . | . . . . . . . . . Feedback Blocked . | . . . . . . . . . Robot Schematics Acquired . | . . . . . . . . . Robots Built . | . . . . . . . . . Authchips . | . . . . . . . . . Time . | . . . . . . . . . Total Robot Build Rating . | . . . . . . . . . Part Schematics Acquired . | . . . . . . . . . Parts Built . | . . . . . . . . . Authchips . | . . . . . . . . . Time . | . . . . . . . . . Total Part Build Rating . | . . . . . . . . . Part Studies Acquired 1 | . . . . . 1 . . . Parts Repaired 3 | . . . . . . . 3 . Time 132 | . . . . . . . 132 . Parts Recycled . | . . . . . . . . . Recycled Matter . | . . . . . . . . . Retrieved Matter . | . . . . . . . . . Retrieved Components . | . . . . . . . . . Parts Scanalyzed . | . . . . . . . . . Part Schematics Acquired . | . . . . . . . . . Parts Damaged . | . . . . . . . . . Bothacking | -11 -10 -10 -10 -9 -8 -8 -8 -8 ------------ Run | Yrd Mat Min Exi Min Mat Gar Mat Gar Used RIF Installer . | . . . . . . . . . Robots Hacked 1 | . . . . . . . 1 . Non-combat 1 | . . . . . . . 1 . Combat . | . . . . . . . . . Robot Hacks Applied 1 | . . . . . . . 1 . find_recycling 1 | . . . . . . . 1 . Relay Couplers Released 4 | . . . . . . 4 . . Programmers 4 | . . . . . . 4 . . Fabnet Peak Effective % . | . . . . . . . . . Robots Rewired 1 | . . . . . . 1 . . Allies Hacked . | . . . . . . . . . Hacks Repelled . | . . . . . . . . . Allies | -11 -10 -10 -10 -9 -8 -8 -8 -8 -------- Run | Yrd Mat Min Exi Min Mat Gar Mat Gar Total Allies 2 | . . 1 . . . 1 . . Largest Group 1 | . . 1 1 1 . 1 . . Highest-Rated Group 31 | . . 31 31 31 . 24 . . Highest-Rated Ally 31 | . . 31 31 31 . 24 . . Initial Warlord ECA Mod 2 | . . . . . . . 2 2 Total Orders . | . . . . . . . . . Ally Attacks 16 | . . 9 . 4 . 3 . . Total Damage 323 | . . 189 . 85 . 49 . . Kills 2 | . . 2 . . . . . . Allies Corrupted . | . . . . . . . . . Allies Melted . | . . . . . . . . . Intel | -11 -10 -10 -10 -9 -8 -8 -8 -8 ------- Run | Yrd Mat Min Exi Min Mat Gar Mat Gar Active Infowar (turns) 659 | 150 507 2 . . . . . . Sensors 2 | . . 2 . . . . . . Seismic 657 | 150 507 . . . . . . . Robot Analysis Total 3 | . 2 . . . 1 . . . Derelict Logs Recovered 2 | . . . . 2 . . . . Drone Launches . | . . . . . . . . . Drone Recoveries . | . . . . . . . . . Exploration | -11 -10 -10 -10 -9 -8 -8 -8 -8 ------------- Run | Yrd Mat Min Exi Min Mat Gar Mat Gar Turns Passed 7761 | 237 1360 681 647 210 1410 2020 1155 41 Spaces Moved 4586 | 172 630 488 449 168 925 1188 541 25 Core 2 | 2 . . . . . . . . Treads . | . . . . . . . . . Legs . | . . . . . . . . . Wheels 4584 | 170 630 488 449 168 925 1188 541 25 Hover . | . . . . . . . . . Flight . | . . . . . . . . . Fastest Speed 50 | 50 90 135 105 105 105 110 130 130 Average Speed 130 | 89 156 135 132 105 119 129 136 130 Slowest Speed 215 | 90 215 135 135 105 160 185 145 130 Overloaded Moves . | . . . . . . . . . Propulsion Burnouts . | . . . . . . . . . Robots Hopped . | . . . . . . . . . Potential Cave-ins . | . . . . . . . . . Cave-ins Triggered 1 | . . . 1 . . . . . Exploration Rate (%) 51 | 6 73 76 90 38 53 75 49 7 Regions Visited 8 Branch Regions 3 Pre-discovered Areas 6 | . 2 1 . . 2 . 1 . Known Exits Taken 2 | . . . . . 1 . 1 . Unknown Exits Taken 5 | 1 1 1 1 1 . . . . Scrap Searched 2 | . . 2 . . . . . . Spaces Dug 14 | . 8 . 1 . 3 2 . . Terrain Destroyed 229 | . 8 . 4 . 91 47 43 36 Melee 5 | . . . . . 3 2 . . Projectile 15 | . 8 . 4 . 3 . . . AOE 209 | . . . . . 85 45 43 36 Terrain Rammed . | . . . . . . . . . Walls Destroyed . | . . . . . . . . . Machines Disabled . | . . . . . . . . . Actions | -11 -10 -10 -10 -9 -8 -8 -8 -8 --------- Run | Yrd Mat Min Exi Min Mat Gar Mat Gar Total 5729 | 207 864 509 466 193 1128 1476 856 30 Wait 549 | . 130 17 . 21 92 65 223 1 Move 4578 | 171 629 487 448 167 924 1187 540 25 Hop . | . . . . . . . . . Pick Up 74 | 7 21 3 1 . 15 19 8 . Fast Attach 28 | 7 . . 1 . 3 10 7 . Attach 26 | . 6 . 1 1 3 10 4 1 Detach 3 | . . . . . . 3 . . Swap 60 | . 6 2 2 . 20 22 7 1 Drop 60 | . 5 . 2 . 21 27 5 . Fire 283 | 22 67 . 11 4 43 74 60 2 Melee 30 | . . . . . 5 24 1 . Ram 3 | . . . . . 2 . 1 . Kick . | . . . . . . . . . Crush . | . . . . . . . . . Escape Stasis 28 | . . . . . . 28 . . Rewire 7 | . . . . . . 7 . . Trap . | . . . . . . . . . Miscellaneous . | . . . . . . . . . Route ------- -11/Scrapyard -10/Materials (discovered 3 exits: [*Mat x2] / *Min) -10/Mines (discovered 2 exits: [*Mat] / *Exi) -10/Exiles -9/Mines -8/Materials (discovered 3 exits: [*Fac] / *Sto / Gar) -8/Garrison (discovered 3 exits: *Mat x3) -8/Materials (discovered 2 exits: [*Fac] / Gar) -8/Garrison History --------- Turn | Location | Event 18 | -11/Scrapyard | Discovered new exit (range 15) 238 | -11/Scrapyard | Entered Materials 315 | -10/Materials | Build established: Mutant 351 | -10/Materials | Discovered new exit (range 14) 769 | -10/Materials | Core integrity fell below 50% 803 | -10/Materials | Lost 5 parts (1p2n1u1w) 1425 | -10/Materials | Discovered new exit (range 8) 1585 | -10/Materials | Discovered new exit (range 7) 1598 | -10/Materials | Entered Mines 1599 | -10/Mines | Met a Derelict testing a Signal Generator 1654 | -10/Mines | Build established: Scavenger-Mutant 1657 | -10/Mines | Found a damaged Exp. Sensor Array with a note attached 1659 | -10/Mines | Found Prototype Device 1659 | -10/Mines | Identified Exp. Sensor Array 1740 | -10/Mines | Found a hidden stash of uninstalled traps 1819 | -10/Mines | Discovered new exit (range 9) 2052 | -10/Mines | Found the Drone Emporium 2064 | -10/Mines | Found Prototype Device 2096 | -10/Mines | Learned location of Storage (-8) 2271 | -10/Mines | Deemed a non-threat by the Exiles lab entrance 2272 | -10/Mines | Discovered new exit (range 5) 2279 | -10/Mines | Entered Exiles 2279 | -10/Exiles | Found Exiles lab abandoned 2279 | -10/Exiles | Accompanied by 1 ally 2529 | -10/Exiles | Crushed by falling debris 2529 | -10/Exiles | Core integrity fell below 20% 2913 | -10/Exiles | Discovered new exit (range 12) 2926 | -10/Exiles | Entered Mines 2926 | -9/Mines | Accompanied by 1 ally 2981 | -9/Mines | Assembled infested the area 3023 | -9/Mines | Learned Materials security intel 3077 | -9/Mines | Discovered new exit (range 16) 3121 | -9/Mines | Learned location of 1 exit from Materials 3136 | -9/Mines | Entered Materials 3136 | -8/Materials | Evolved 4 slots: Power x1, Utility x1, Weapon x2 3137 | -8/Materials | Identified exit to Storage 3447 | -8/Materials | Build established: Scavenger-Tank 3632 | -8/Materials | Discovered new exit (range 13) 3836 | -8/Materials | Build established: Tank 3998 | -8/Materials | Identified exit to Garrison 4437 | -8/Materials | Central database locked down 4546 | -8/Materials | Entered Garrison 4572 | -8/Garrison | Triggered checkpoint 4750 | -8/Garrison | Destroyed 10 combat bots 4760 | -8/Garrison | Lost 5 parts (1p4w) 4764 | -8/Garrison | Triggered checkpoint 4794 | -8/Garrison | Learned Materials security intel 4945 | -8/Garrison | Lost 6 parts (1p2n1u2w) 5022 | -8/Garrison | Triggered checkpoint 5083 | -8/Garrison | Discovered new exit (range 15) 5314 | -8/Garrison | Triggered checkpoint 5387 | -8/Garrison | Lost 3 parts (1p1u1w) 5430 | -8/Garrison | Discovered new exit (range 10) 5472 | -8/Garrison | Triggered checkpoint 5544 | -8/Garrison | Triggered checkpoint 5586 | -8/Garrison | Triggered checkpoint 5642 | -8/Garrison | Build established: Scavenger-Tank 5680 | -8/Garrison | Discovered new exit (range 15) 6006 | -8/Garrison | Triggered checkpoint 6021 | -8/Garrison | Core integrity fell below 50% 6525 | -8/Garrison | Spotted B-75 Beast 6566 | -8/Garrison | Entered Materials 6765 | -8/Materials | Repaired Arm. Huge Wheel 6817 | -8/Materials | Repaired Adv. Heat Sink 6856 | -8/Materials | Repaired Hrd. Medium Armor Plating 6966 | -8/Materials | First assault squad dispatched 7124 | -8/Materials | System corruption reached 10% 7213 | -8/Materials | Core integrity fell below 20% 7587 | -8/Materials | Discovered new exit (range 15) 7720 | -8/Materials | Identified exit to Garrison 7721 | -8/Materials | Lost 4 parts (1p1u2w) 7721 | -8/Materials | Entered Garrison 7762 | -8/Garrison | Destroyed by P-60 Hacker with Shock Rifle Last Messages --------------- 07711_ K-01 Serf collects debris. 07714_ The unstable cave ceiling collapses. 07715_ K-01 Serf collects debris. 07716_ Acquired 33 matter. 07719_ K-01 Serf collects debris. 07720_ Connecting with Garrison Access... >>Unlock Access door unlocked. 07720_ EXIT=UNLOCKED: GARRISON LOCATION=GARRISON GOAL=ESCAPE 07723_ 5,S%POSCVRPJ=0%KIG9B 07738_ /3PUNMM9N0ZF N56ZWACX7CFH>9C=VNV<,H 07757_ System corrupted: Heat flow error (+191). 07757_ Destroyed Shock Rifle. 07757_ P-60 Hacker destroyed. 07759_ The unstable cave ceiling collapses. 07760_ Imp. Grenade Launcher destroyed. 07761_ System corrupted: Imp. Grenade Launcher failed to launch. 07761_ Destroyed Gravmag System. Map ----- +----------------------------------------------------+ | ?????????????????????????????????????????????????? | | ?????????????????????????????????????????????????? | | ?????????????????????????????????????????????????? | | ?????????????????????????????????????????????????? | | ?????????????????????????????????????????????????? | | ?????????????????????????????????????????????????? | | ?????????????????????????????????????????????????? | | ?????????????????????????????????????????????????? | | ?????????????????????????????????????????????????? | | ?????????????????????????????????????????????????? | | ?????????????????????????????????????????????????? | | ?????????????????????????????????????????????????? | | ??????????????????###????????????????????????????? | | ?????????????????? ????????????????????????????? | | ?????????????????? ????????????????????????????? | | ??????????????????# #???????????????????????????? | | ??????????????????# #???????????????????????????? | | ???????????????#??# #???????????????????????????? | | ???????????????? ## #???????????????????????????? | | ????????????????? ; #???????????????????????????? | | ?????????????????## p ???????????????????????????? | | ?????????????????# ##?????????????????????????? | | ?????????????????# ?????????????????????????? | | ????????# ####### ????????????????????????? | | ????????# ######"""???????????????? | | ????????# p @ ????????? | | ?????????????#### | #########???????????????? | | ????????????????## ????????????????????????? | | ?????????????????# ?????????????????????????? | | ?????????????????## # ?????????????????????????? | | ??????????????????# ##??????????????????????????? | | ??????????????????# #???????????????????????????? | | ??????????????????# ##############??????????????? | | ??????????????????# #??????????????? | | ??????????????????# #??????????????? | | ??????????????????############# #??????????????? | | ??????????????????????????????# #??????????????? | | ??????????????????????????????#####??????????????? | | ?????????????????????????????????????????????????? | | ?????????????????????????????????????????????????? | | ?????????????????????????????????????????????????? | | ?????????????????????????????????????????????????? | | ?????????????????????????????????????????????????? | | ?????????????????????????????????????????????????? | | ?????????????????????????????????????????????????? | | ?????????????????????????????????????????????????? | | ?????????????????????????????????????????????????? | | ?????????????????????????????????????????????????? | | ?????????????????????????????????????????????????? | | ?????????????????????????????????????????????????? | +----------------------------------------------------+ Best States ------------- Heat Dissipation 64 Energy Generation 25 Energy Capacity 455 Matter Stores 300 Matter Capacity 300 Sight Range 16 Robot Scan Range 20 Terrain Scan Density 10 Armor Coverage 225 Evasion (%) 42 Item Schematics ----------------- None Robot Schematics ------------------ None Fabricated ------------ Nothing Repaired ---------- Arm. Huge Wheel | 3% | -8/Materials Adv. Heat Sink | 8% | -8/Materials Hrd. Medium Armor Plating | 30% | -8/Materials Studied --------- Com. Wheel | -8/Materials | Hacked Alien Tech Used ----------------- None Achievements -------------- Let Me Out Of Here Challenges ------------ None Game ------ Seed WarpLightCapacitor Manual? 0 Play Time 00:52:55 Cumulative 81.5 hours Start 2026.02.16 @ 23:15:39 End 2026.02.17 @ 00:10:38 Sessions 1 Manual Loads 0 Difficulty Rogue Special Mode None Game No. 170 Rogue 170 Adventurer 0 Explorer 0 Win Type - Total 1 Types 1/0/0/0/0/0/0/0/0/0 Lore% 49 Gallery% 37 Achievement% 37 Wizard Run 0 Options --------- Layout 0 ASCII 0 Keyboard 1 Movement Arrows Keybinds 0 Fullscreen 1 Font 18/Smallcaps Map View 38x25 Zoom Use 65% Tactical HUD 1 Map Filters NONE Filters NONE Steam 1 RUN: 4905cd5b-95bb-42d8-a167-e3a9de5bfe88